[Event "World Junior U20 Girls 2018"]
[Site "Gebze"]
[Date "2018.09.07"]
[Round "3"]
[White "Paramzina, Anastasya"]
[Black "Nastase, Andreea-Cristina"]
[Result "1-0"]
[ECO "B90"]
[WhiteElo "2222"]
[BlackElo "1983"]
[Annotator "NA"]
[PlyCount "169"]
[EventDate "2018.09.05"]
[EventType "swiss"]
[EventCountry "TUR"]
[SourceTitle "playchess.com"]
[Source "ChessBase"]
[SourceQuality "1"]
[TimeControl "40/5400+30:1800+30"]

1. e4 {[%emt 0:00:30]} c5 {[%emt 0:02:30]} 2. Nf3 {[%emt 0:00:30]} d6 {[%emt 0:00:00]} 3. d4 {[%emt 0:00:00]} cxd4 {[%emt 0:00:00]} 4. Nxd4 {[%emt 0:00:00]} Nf6 {[%emt 0:00:30]} 5. Nc3 {[%emt 0:00:30]} a6 {[%emt 0:00:30]} 6. h3 {[%emt 0:00:00]} e5 {[%emt 0:00:30]} 7. Nde2 {[%emt 0:00:00]} Nc6 {[%emt 0:01:30] B90: Sicilian Najdorf: Unusual White 6th moves, 6 Be3 Ng4 and 6 Be3 e5} (7... b5 8. Ng3 Qc7 9. Bd3 g6 10. Bg5 Nbd7 11. O-O Bg7 12. a4 bxa4 13. Rxa4 O-O 14. Qd2 Bb7 15. Ra3 Nc5 16. Bxf6 Bxf6 {1-0 (52) Harikrishna,P (2739)-Kokarev,D (2608) Linares 2018}) 8. g4 {[%emt 0:00:30]} h6 {[%emt 0:04:30]} 9. Bg2 {[%emt 0:03:30]} Be7 {[%emt 0:02:30]} 10. O-O {[%emt 0:02:30]} O-O {[%emt 0:02:30]} 11. Be3 {[%emt 0:02:30]} Be6 {[%emt 0:11:30]} 12. Nd5 $146 {[%emt 0:02:30]} ({Predecessor:} 12. Ng3 Ne8 13. Nf5 Bg5 14. Qd2 Bxe3 15. Qxe3 Bxf5 16. exf5 {½-½ (40) Pletnev,E (2294)-Ljamin,V (2187) Moscow 2013}) 12... Bxd5 {[%emt 0:04:30]} 13. exd5 {[%emt 0:15:30]} Nb8 {[%emt 0:34:30]} 14. a4 {[%emt 0:00:30]} Nh7 {[%emt 0:03:30]} 15. Ra3 {[%emt 0:04:30]} Nd7 {[%emt 0:02:30]} 16. Ng3 {[%emt 0:09:30]} Re8 {[%emt 0:10:30]} 17. Nf5 {[%emt 0:03:30]} Bf8 {[%emt 0:00:30]} 18. Bc1 {[%emt 0:08:30]} Nb6 {[%emt 0:05:30]} 19. a5 {[%emt 0:03:30]} Nc8 {[%emt 0:00:30]} 20. c4 {[%emt 0:16:30]} Ne7 $14 {[%emt 0:02:30]} 21. Be4 {[%emt 0:02:30]} Nxf5 {[%emt 0:03:30]} 22. Bxf5 {[%emt 0:02:30]} g6 {[%emt 0:00:30]} 23. Bc2 {[%emt 0:00:30]} Rc8 {[%emt 0:00:30]} 24. Qe2 {[%emt 0:00:30]} Qc7 {[%emt 0:00:30]} 25. Ra4 {[%emt 0:00:30]} Qe7 {[%emt 0:00:30]} 26. Kg2 {[%emt 0:03:30]} Rc7 {[%emt 0:08:30]} 27. Be3 {[%emt 0:01:30]} Nf6 {[%emt 0:05:30]} 28. Rh1 {[%emt 0:05:30]} Rec8 {[%emt 0:01:30]} 29. Bb1 {[%emt 0:02:30]} Qd7 {[%emt 0:01:30]} 30. Rb4 {[%emt 0:00:30]} Ra8 {[%emt 0:02:30]} 31. Bb6 {[%emt 0:03:30]} Rcc8 {[%emt 0:00:30]} 32. Rb3 {[%emt 0:07:25]} Qa4 {[%emt 0:01:29]} 33. Rf3 {[%emt 0:00:05]} Nd7 {[%emt 0:00:51]} 34. b3 {[%emt 0:00:30]} Qb4 {[%emt 0:00:01]} 35. Be3 {[%emt 0:00:24]} Qxa5 {[%emt 0:04:09]} 36. h4 {[%emt 0:00:28]} Bg7 {[%emt 0:05:35]} 37. Qc2 {[%emt 0:06:14]} Re8 {[%emt 0:02:54]} 38. h5 {[%emt 0:00:38]} e4 {[%emt 0:00:47]} 39. Rf4 {[%emt 0:00:06]} g5 {[%emt 0:03:50]} 40. Rxe4 {[%emt 0:00:00]} Nf8 {[%emt 0:00:00]} 41. Bd2 {[%emt 0:08:10]} Qd8 {[%emt 0:06:24]} 42. Rhe1 {[%emt 0:00:30]} Qd7 {[%emt 0:01:30]} 43. Bb4 {[%emt 0:03:30]} Rxe4 {[%emt 0:00:30]} 44. Qxe4 {[%emt 0:01:30]} b5 {[%emt 0:02:30]} 45. c5 {[%emt 0:01:30]} dxc5 {[%emt 0:00:30]} 46. Bxc5 {[%emt 0:00:30]} Rd8 {[%emt 0:00:30]} 47. Rd1 {[%emt 0:05:30]} Rc8 {[%emt 0:01:30]} 48. Bb4 {[%emt 0:00:30]} Re8 {[%emt 0:03:30]} 49. Qf5 {[%emt 0:00:30]} Qxf5 {[%emt 0:06:56]} 50. Bxf5 {[%emt 0:00:30]} Bf6 {[%emt 0:00:08]} 51. d6 {[%emt 0:05:29]} Ra8 {[%emt 0:03:57]} 52. d7 {[%emt 0:01:50]} a5 {[%emt 0:00:30]} 53. Bd6 {[%emt 0:01:59]} Ne6 {[%emt 0:01:57]} 54. Be4 {[%emt 0:09:12]} Ra6 {[%emt 0:00:52]} 55. Kf3 {[%emt 0:01:10]} a4 {[%emt 0:00:27]} 56. bxa4 {[%emt 0:00:42]} bxa4 {[%emt 0:00:42]} 57. Ba3 {[%emt 0:00:10]} Rb6 {[%emt 0:01:03]} 58. Bd5 {[%emt 0:00:11]} Kg7 {[%emt 0:02:00]} 59. Ke4 {[%emt 0:00:17]} Nd8 {[%emt 0:00:28]} 60. Rc1 {[%emt 0:00:30]} Ra6 {[%emt 0:02:13]} 61. Rc7 {[%emt 0:00:40]} Rb6 {[%emt 0:00:19]} 62. Ra7 {[%emt 0:01:18]} Rb1 {[%emt 0:00:24]} 63. Rxa4 {[%emt 0:00:12]} Re1+ {[%emt 0:01:24]} 64. Kd3 {[%emt 0:00:12]} Rd1+ {[%emt 0:00:00]} 65. Ke4 {[%emt 0:00:46]} Re1+ {[%emt 0:00:02]} 66. Kf3 {[%emt 0:00:00]} Rd1 {[%emt 0:00:59]} 67. Ra5 {[%emt 0:00:08]} Bc3 {[%emt 0:01:21]} 68. Rc5 {[%emt 0:01:41]} Be5 {[%emt 0:01:05]} 69. Ke2 {[%emt 0:01:44]} Ra1 {[%emt 0:00:55]} 70. Ra5 {[%emt 0:00:15]} Bc3 {[%emt 0:01:09]} 71. Ra8 {[%emt 0:00:42]} Re1+ {[%emt 0:00:05]} 72. Kf3 {[%emt 0:00:55]} Bf6 {[%emt 0:00:38]} 73. Bb2 {[%emt 0:00:21]} Rd1 {[%emt 0:00:30]} 74. Bxf6+ {[%emt 0:01:23]} Kxf6 {[%emt 0:00:04]} 75. Ke4 {[%emt 0:00:34]} Ke7 {[%emt 0:00:12]} 76. Ra6 {[%emt 0:00:17]} Rd2 {[%emt 0:03:13]} 77. f3 {[%emt 0:00:11]} f6 {[%emt 0:00:59]} 78. Ba8 {[%emt 0:00:44]} Rxd7 {[%emt 0:01:31]} 79. Kf5 {[%emt 0:00:07]} Rd4 {[%emt 0:00:49]} 80. Kg6 {[%emt 0:00:55]} Ne6 {[%emt 0:00:30]} 81. Ra7+ {[%emt 0:00:47]} Kd6 {[%emt 0:00:11]} 82. Kxh6 {[%emt 0:00:00]} Ke5 {[%emt 0:00:33]} 83. Ra5+ {[%emt 0:00:08]} Kd6 {[%emt 0:00:24]} 84. Kg6 {[%emt 0:00:03]} Rf4 {[%emt 0:00:51]} 85. h6 {[%emt 0:00:40]} 1-0

[Event "World Junior U20 Girls 2018"]
[Site "Gebze"]
[Date "2018.09.07"]
[Round "3"]
[White "Altantuya, Boldbaatar"]
[Black "Aubert, Laurane"]
[Result "1-0"]
[ECO "D38"]
[WhiteElo "2210"]
[BlackElo "1970"]
[Annotator "NA"]
[PlyCount "73"]
[EventDate "2018.09.05"]
[EventType "swiss"]
[EventCountry "TUR"]
[SourceTitle "playchess.com"]
[Source "ChessBase"]
[SourceQuality "1"]
[TimeControl "40/5400+30:1800+30"]

1. d4 {[%emt 0:00:30]} d5 {[%emt 0:00:30]} 2. c4 {[%emt 0:00:30]} e6 {[%emt 0:00:30]} 3. Nf3 {[%emt 0:00:00]} Nf6 {[%emt 0:00:00]} 4. cxd5 {[%emt 0:00:00]} exd5 {[%emt 0:00:00]} 5. Bg5 {[%emt 0:00:30]} Bb4+ {[%emt 0:02:30]} 6. Nc3 {[%emt 0:02:30]} Nbd7 {[%emt 0:08:30]} 7. e3 {[%emt 0:02:30]} h6 {[%emt 0:07:30]} 8. Bh4 {[%emt 0:03:30]} g5 {[%emt 0:04:30]} 9. Bg3 {[%emt 0:00:30]} Ne4 {[%emt 0:00:30]} 10. Qc2 {[%emt 0:07:30]} h5 {[%emt 0:28:00]} 11. Bd3 {[%emt 0:22:30]} h4 {[%emt 0:21:30]} 12. Bxe4 {[%emt 0:01:30]} hxg3 {[%emt 0:00:30]} 13. Bxd5 {[%emt 0:00:30]} Bxc3+ {[%emt 0:04:30]} 14. bxc3 $11 {[%emt 0:02:30]} Nf6 $2 {[%emt 0:00:30]} (14... g4 $1 $14) 15. Bb3 {[%emt 0:03:30]} gxf2+ {[%emt 0:01:30]} 16. Qxf2 {[%emt 0:00:30]} Ne4 {[%emt 0:02:30]} 17. Qc2 {[%emt 0:03:30]} Bf5 {[%emt 0:03:30]} 18. Ne5 {[%emt 0:14:30]} Nd6 {[%emt 0:15:30]} 19. Bxf7+ {[%emt 0:22:30]} Kf8 {[%emt 0:11:21]} 20. Qf2 {[%emt 0:01:30]} Kg7 {[%emt 0:04:06]} 21. O-O {[%emt 0:01:30]} Qe7 {[%emt 0:01:46]} 22. Bb3 {[%emt 0:02:30]} Raf8 {[%emt 0:00:28]} 23. Qb2 {[%emt 0:06:25]} g4 {[%emt 0:01:51]} 24. Rf4 {[%emt 0:11:40]} Qh4 {[%emt 0:01:56]} 25. g3 {[%emt 0:01:44]} Qh3 {[%emt 0:01:17]} 26. Nf7 {[%emt 0:02:34]} Nxf7 {[%emt 0:01:14]} 27. Rxf5 {[%emt 0:00:52]} Nd6 {[%emt 0:00:25]} 28. Rg5+ {[%emt 0:00:54]} Kh6 {[%emt 0:00:41]} 29. Re5 {[%emt 0:00:23]} Nf5 {[%emt 0:00:44]} 30. Qg2 {[%emt 0:00:37]} Qh5 {[%emt 0:00:34]} 31. e4 {[%emt 0:00:21]} Qg5 {[%emt 0:00:34]} 32. exf5 {[%emt 0:00:30]} Rxf5 {[%emt 0:00:19]} 33. Rxf5 {[%emt 0:00:11]} Qxf5 {[%emt 0:00:35]} 34. Rf1 {[%emt 0:00:05]} Qg5 {[%emt 0:00:04]} 35. Qe4 {[%emt 0:00:25]} c6 {[%emt 0:01:03]} 36. Qe6+ {[%emt 0:00:10]} Kh7 {[%emt 0:00:32]} 37. Rf7+ {[%emt 0:00:06]} 1-0

[Event "World Junior U20 Girls 2018"]
[Site "Gebze"]
[Date "2018.09.07"]
[Round "3"]
[White "Ghukasyan, Siranush"]
[Black "Assaubayeva, Bibisara"]
[Result "1/2-1/2"]
[ECO "C77"]
[WhiteElo "2205"]
[BlackElo "2371"]
[Annotator "ChessBase"]
[PlyCount "113"]
[EventDate "2018.09.05"]
[EventType "swiss"]
[EventCountry "TUR"]
[SourceTitle "playchess.com"]
[Source "ChessBase"]
[SourceQuality "1"]
[TimeControl "40/5400+30:1800+30"]

1. e4 {[%emt 0:04:30]} e5 {[%emt 0:00:30]} 2. Nf3 {[%emt 0:00:00]} Nc6 {[%emt 0:00:00]} 3. Bb5 {[%emt 0:00:00]} a6 {[%emt 0:00:00]} 4. Ba4 {[%emt 0:00:30]} Nf6 {[%emt 0:00:30]} 5. d3 {[%emt 0:00:30]} d6 {[%emt 0:00:30]} 6. c3 {[%emt 0:00:30]} g6 {[%emt 0:00:30]} 7. O-O {[%emt 0:00:30]} Bg7 {[%emt 0:00:00]} 8. Nbd2 {[%emt 0:00:30]} O-O {[%emt 0:00:00]} 9. Re1 {[%emt 0:00:30]} b5 {[%emt 0:03:30]} 10. Bc2 {[%emt 0:01:30]} Bb7 {[%emt 0:01:30]} 11. d4 {[%emt 0:08:30]} Re8 {[%emt 0:03:30]} 12. a3 {[%emt 0:05:30]} Nb8 {[%emt 0:03:30]} 13. b3 {[%emt 0:11:30]} exd4 {[%emt 0:00:00]} 14. cxd4 {[%emt 0:00:30]} c5 {[%emt 0:10:00]} 15. Bb2 {[%emt 0:00:30]} cxd4 {[%emt 0:01:30]} 16. Bxd4 {[%emt 0:01:30]} Nc6 {[%emt 0:02:30]} 17. Bb2 {[%emt 0:04:30]} Qb6 {[%emt 0:01:30]} 18. Re2 {[%emt 0:12:30]} Rad8 {[%emt 0:06:30]} 19. Qe1 {[%emt 0:02:30]} Ng4 {[%emt 0:04:30]} 20. Bxg7 {[%emt 0:00:30]} Kxg7 {[%emt 0:00:00]} 21. Rd1 {[%emt 0:09:30]} Nge5 {[%emt 0:03:00]} 22. b4 {[%emt 0:06:30]} a5 {[%emt 0:03:30]} 23. Nf1 {[%emt 0:02:30]} Nxf3+ {[%emt 0:00:30]} 24. gxf3 {[%emt 0:00:30]} axb4 {[%emt 0:00:30]} 25. axb4 {[%emt 0:00:30]} Kg8 {[%emt 0:06:30]} 26. Qd2 {[%emt 0:13:31]} Ne5 {[%emt 0:10:30]} 27. Qf4 {[%emt 0:01:23]} f5 {[%emt 0:03:30]} 28. Bb3+ {[%emt 0:02:01]} Kg7 {[%emt 0:01:30]} 29. Bd5 {[%emt 0:03:29]} Rf8 {[%emt 0:05:30]} 30. Qe3 {[%emt 0:01:38]} Qxe3 {[%emt 0:05:30]} 31. Rxe3 {[%emt 0:00:30]} Bc8 {[%emt 0:00:30]} 32. Nd2 {[%emt 0:01:48]} fxe4 {[%emt 0:02:30]} 33. fxe4 {[%emt 0:00:28]} Bg4 {[%emt 0:03:16]} 34. Rc1 {[%emt 0:00:38]} Rf4 {[%emt 0:02:36]} 35. h3 {[%emt 0:01:25]} Bh5 {[%emt 0:03:47]} 36. Kg2 {[%emt 0:02:38]} Rdf8 {[%emt 0:00:53]} 37. Rf1 {[%emt 0:00:01]} Bf3+ {[%emt 0:02:22]} 38. Nxf3 {[%emt 0:01:20]} Nxf3 {[%emt 0:00:27]} 39. Rd3 {[%emt 0:00:44]} g5 {[%emt 0:01:17]} 40. Kg3 {[%emt 0:00:00]} h5 {[%emt 0:00:00]} 41. Rc1 {[%emt 0:04:26]} Ne5 {[%emt 0:04:52]} 42. Rd2 {[%emt 0:01:30]} Rf3+ {[%emt 0:00:30]} 43. Kg2 {[%emt 0:00:30]} Nd3 {[%emt 0:07:30]} 44. Rc7+ {[%emt 0:02:30]} Kh6 {[%emt 0:00:30]} 45. e5 {[%emt 0:06:31]} Nf4+ {[%emt 0:09:30]} 46. Kg1 {[%emt 0:03:32]} Nxh3+ {[%emt 0:06:20]} 47. Kh2 {[%emt 0:00:18]} Rxf2+ {[%emt 0:02:15]} 48. Rxf2 {[%emt 0:00:20]} Nxf2 {[%emt 0:00:31]} 49. exd6 {[%emt 0:01:23]} Ng4+ {[%emt 0:01:14]} 50. Kg3 {[%emt 0:01:00]} Ne5 {[%emt 0:02:41]} 51. Be4 {[%emt 0:11:23]} Nf7 {[%emt 0:04:34]} 52. Re7 {[%emt 0:01:58]} g4 {[%emt 0:03:07]} 53. Re6+ {[%emt 0:02:29]} Kg7 {[%emt 0:00:30]} 54. Rg6+ {[%emt 0:00:00]} Kh8 {[%emt 0:00:00]} 55. Rf6 {[%emt 0:00:03]} Kg7 {[%emt 0:00:36]} 56. Rg6+ {[%emt 0:00:59]} Kh8 {[%emt 0:00:04]} 57. Rf6 {[%emt 0:00:31]} 1/2-1/2

[Event "World Junior U20 Girls 2018"]
[Site "Gebze"]
[Date "2018.09.07"]
[Round "3"]
[White "Hilario, Aleyla"]
[Black "Khomeriki, Nino"]
[Result "0-1"]
[ECO "A70"]
[WhiteElo "2203"]
[BlackElo "2313"]
[Annotator "NA"]
[PlyCount "102"]
[EventDate "2018.09.05"]
[EventType "swiss"]
[EventCountry "TUR"]
[SourceTitle "playchess.com"]
[Source "ChessBase"]
[SourceQuality "1"]
[TimeControl "40/5400+30:1800+30"]

1. d4 {[%emt 0:00:30]} Nf6 {[%emt 0:00:30]} 2. c4 {[%emt 0:00:00]} e6 {[%emt 0:00:30]} 3. Nf3 {[%emt 0:00:00]} c5 {[%emt 0:00:30]} 4. d5 {[%emt 0:04:30]} d6 {[%emt 0:00:30]} 5. Nc3 {[%emt 0:00:30]} exd5 {[%emt 0:00:30]} 6. cxd5 {[%emt 0:00:30]} g6 {[%emt 0:00:00]} 7. e4 {[%emt 0:00:00]} Bg7 {[%emt 0:00:00]} 8. Bd3 {[%emt 0:01:00]} O-O {[%emt 0:00:30]} 9. O-O {[%emt 0:00:30]} Bg4 {[%emt 0:01:30]} 10. h3 {[%emt 0:01:30]} Bxf3 {[%emt 0:00:00]} 11. Qxf3 {[%emt 0:00:00]} Nbd7 {[%emt 0:01:00]} 12. Bf4 {[%emt 0:03:00] A70: Modern Benoni: 6 e4 g6 7 Nf3} (12. Qe2 a6 13. a4 Ne5 14. Bc2 Re8 15. f4 Ned7 16. Qf3 c4 17. Be3 Qa5 18. Rae1 b5 19. axb5 axb5 20. Ne2 b4 21. Bd4 {0-1 (39) Zubritskiy,A (2442)-Khalifman,A (2617) Tallinn 2016}) 12... Qe7 {[%emt 0:00:30]} 13. Qe2 {[%emt 0:05:30]} a6 {[%emt 0:08:30]} 14. a4 {[%emt 0:01:30]} Nh5 {[%emt 0:04:30]} 15. Bh2 {[%emt 0:00:30]} Bd4 {[%emt 0:06:30]} 16. Kh1 {[%emt 0:00:30]} Rae8 {[%emt 0:07:30]} 17. Rae1 $146 {[%emt 0:02:30]} ({Predecessor:} 17. f4 Qh4 18. Qf3 f5 19. Rae1 g5 20. g3 Qxh3 21. exf5 Rxe1 22. Rxe1 gxf4 23. Bf1 Nxg3+ {0-1 (23) Akyuz,M (1874)-Erdogan,H (2170) Manavgat 2016}) 17... Qf6 {[%emt 0:18:30]} 18. Qd2 {[%emt 0:05:30]} g5 {[%emt 0:09:30]} 19. Ne2 {[%emt 0:20:30]} Be5 {[%emt 0:06:30]} 20. f4 {[%emt 0:01:30]} gxf4 {[%emt 0:00:00]} 21. g4 {[%emt 0:00:00]} Ng7 {[%emt 0:03:00]} 22. Nxf4 {[%emt 0:01:00]} Qh4 {[%emt 0:01:30]} 23. Qg2 {[%emt 0:00:30]} Rb8 {[%emt 0:00:30]} 24. Re2 {[%emt 0:00:30]} b5 {[%emt 0:00:30]} 25. axb5 {[%emt 0:00:30]} axb5 {[%emt 0:04:30]} 26. b3 {[%emt 0:12:30]} c4 {[%emt 0:04:30]} 27. bxc4 {[%emt 0:02:30]} b4 {[%emt 0:01:30]} 28. Bb1 {[%emt 0:10:30]} Qe7 {[%emt 0:03:01]} 29. Ref2 {[%emt 0:09:44]} b3 {[%emt 0:06:38]} 30. Nd3 {[%emt 0:04:53]} f6 {[%emt 0:03:14]} 31. h4 {[%emt 0:04:15]} Bd4 {[%emt 0:03:30]} 32. Rf3 {[%emt 0:05:41]} Ne5 {[%emt 0:00:10]} 33. Nxe5 {[%emt 0:01:28]} Bxe5 {[%emt 0:04:17]} 34. Bg1 $16 {[%emt 0:00:26]} (34. h5 $18 {has better winning chances.}) 34... Kh8 {[%emt 0:02:06]} 35. Be3 {[%emt 0:00:05]} Rg8 {[%emt 0:00:21]} 36. Qh3 {[%emt 0:01:41]} Qd7 {[%emt 0:00:39]} 37. g5 {[%emt 0:01:32]} Qxh3+ {[%emt 0:00:05]} 38. Rxh3 {[%emt 0:00:00]} Nh5 {[%emt 0:00:09]} 39. Rd1 {[%emt 0:00:49]} b2 {[%emt 0:00:50]} 40. gxf6 {[%emt 0:00:00]} Ng3+ {[%emt 0:00:53]} 41. Kg2 {[%emt 0:00:56]} Nxe4+ {[%emt 0:05:07]} 42. Kf3 {[%emt 0:08:30]} Nc3 {[%emt 0:01:30]} 43. Rdh1 {[%emt 0:03:30]} Bxf6 {[%emt 0:03:30]} 44. Bg5 {[%emt 0:01:06]} Be5 {[%emt 0:00:30]} 45. Kf2 {[%emt 0:04:17]} Bd4+ {[%emt 0:07:13]} 46. Kf3 {[%emt 0:05:40]} Nxb1 {[%emt 0:08:51]} 47. Rxb1 {[%emt 0:00:49]} Rb3+ {[%emt 0:00:02]} 48. Kg2 {[%emt 0:02:05]} Rxh3 {[%emt 0:00:30]} 49. Kxh3 {[%emt 0:00:00]} Ra8 {[%emt 0:00:00]} 50. Bc1 {[%emt 0:00:26]} bxc1=Q {[%emt 0:00:53]} 51. Rxc1 {[%emt 0:00:03]} h5 {[%emt 0:00:25]} 0-1

[Event "World Junior U20 Girls 2018"]
[Site "Gebze"]
[Date "2018.09.07"]
[Round "3"]
[White "Kanakova, Natalie"]
[Black "Antova, Gabriela"]
[Result "1/2-1/2"]
[ECO "B51"]
[WhiteElo "2201"]
[BlackElo "2292"]
[Annotator "NA"]
[PlyCount "68"]
[EventDate "2018.09.05"]
[EventType "swiss"]
[EventCountry "TUR"]
[SourceTitle "playchess.com"]
[Source "ChessBase"]
[SourceQuality "1"]
[TimeControl "40/5400+30:1800+30"]

1. e4 {[%emt 0:00:30]} c5 {[%emt 0:00:30]} 2. Nf3 {[%emt 0:00:30]} d6 {[%emt 0:00:00]} 3. Bb5+ {[%emt 0:00:00]} Nd7 {[%emt 0:00:00]} 4. c4 {[%emt 0:00:00]} Ngf6 {[%emt 0:01:30] LiveBook: 70 Games} 5. Nc3 {[%emt 0:00:30]} g6 {[%emt 0:00:30]} 6. O-O {[%emt 0:01:30] B51: Sizilianisch (Rossolimo-Variante)} Bg7 {[%emt 0:00:30]} 7. d4 {[%emt 0:00:30]} (7. Ba4 O-O 8. h3 Nb6 9. Bb3 e5 10. d3 Ne8 11. Bg5 f6 12. Be3 f5 13. Bg5 Bf6 {0-1 (43) Safarli,E (2664)-Giri,A (2790) Shamkir 2016 CBM 173 [Mekhitarian,K]}) 7... cxd4 {[%emt 0:00:30]} 8. Nxd4 {[%emt 0:00:30]} O-O {[%emt 0:00:30]} 9. Bxd7 {[%emt 0:00:30]} Bxd7 {[%emt 0:01:30]} 10. Qd3 {[%emt 0:03:30]} Ng4 $146 {[%emt 0:09:30]} ({Vorgänger:} 10... Rc8 11. b3 Qa5 12. Bb2 Rfe8 13. Nce2 Qc5 {0-1 (59) Gehlhaar,C (2095)-Werner,D (2167) Berlin 2005}) 11. Nf3 {[%emt 0:01:30]} Rc8 {[%emt 0:02:30]} 12. Bd2 {[%emt 0:08:30]} Re8 {[%emt 0:06:30]} 13. Rac1 {[%emt 0:06:30]} a6 {[%emt 0:03:30]} 14. h3 {[%emt 0:07:30]} Ne5 {[%emt 0:04:30]} 15. Nxe5 {[%emt 0:00:30]} Bxe5 {[%emt 0:01:30]} 16. f4 {[%emt 0:12:30]} Bg7 {[%emt 0:00:30]} 17. b3 {[%emt 0:01:30]} b5 {[%emt 0:03:30]} 18. f5 {[%emt 0:03:30]} bxc4 {[%emt 0:03:30]} 19. bxc4 {[%emt 0:02:30]} Bc6 {[%emt 0:10:30]} 20. Nd5 {[%emt 0:06:30]} Bxd5 {[%emt 0:04:30]} 21. cxd5 {[%emt 0:00:30]} Qb6+ {[%emt 0:00:30]} 22. Kh1 {[%emt 0:01:30]} Qb5 {[%emt 0:13:30]} 23. Qf3 {[%emt 0:02:30]} Rxc1 {[%emt 0:02:30]} 24. Bxc1 $11 {[%emt 0:00:30]} Kh8 {[%emt 0:05:30]} 25. Bg5 {[%emt 0:01:30]} Qb2 {[%emt 0:01:30]} 26. a4 {[%emt 0:07:30]} Qe5 {[%emt 0:03:55]} 27. a5 {[%emt 0:03:30]} gxf5 {[%emt 0:04:10]} 28. exf5 {[%emt 0:02:30]} Rc8 {[%emt 0:03:21]} 29. Rb1 {[%emt 0:09:19]} h6 {[%emt 0:04:16]} 30. Bd2 {[%emt 0:00:43]} Rc5 {[%emt 0:00:54]} 31. Qh5 {[%emt 0:06:42]} Qf6 {[%emt 0:01:41]} 32. Qf3 {[%emt 0:01:20]} Qe5 {[%emt 0:00:44]} 33. Qh5 {[%emt 0:00:11]} Qf6 {[%emt 0:00:00]} 34. Qf3 {[%emt 0:01:24]} Qe5 {[%emt 0:05:46]} 1/2-1/2

[Event "World Junior U20 Girls 2018"]
[Site "Gebze"]
[Date "2018.09.07"]
[Round "3"]
[White "Chu, Ruotong"]
[Black "Zhu, Jiner"]
[Result "1-0"]
[ECO "E04"]
[WhiteElo "2199"]
[BlackElo "2364"]
[Annotator "NA"]
[PlyCount "115"]
[EventDate "2018.09.05"]
[EventType "swiss"]
[EventCountry "TUR"]
[SourceTitle "playchess.com"]
[Source "ChessBase"]
[SourceQuality "1"]
[TimeControl "40/5400+30:1800+30"]

1. d4 {[%emt 0:01:30]} Nf6 {[%emt 0:00:30]} 2. c4 {[%emt 0:00:30]} e6 {[%emt 0:00:00]} 3. g3 {[%emt 0:13:30]} d5 {[%emt 0:00:00]} 4. Bg2 {[%emt 0:00:30]} dxc4 {[%emt 0:00:00]} 5. Nf3 {[%emt 0:00:30]} Nc6 {[%emt 0:00:00]} 6. Qa4 {[%emt 0:00:30]} Nd7 {[%emt 0:00:30] E04: Open Catalan: 5 Nf3} (6... Bb4+ 7. Bd2 Nd5 8. Bxb4 Ndxb4 9. O-O Rb8 10. Na3 O-O 11. Qb5 b6 12. Qxc4 Ba6 13. Nb5 Qe8 14. Rfc1 Nd5 15. Qxc6 Qxc6 16. Rxc6 Bxb5 17. Rc2 Rfc8 {½-½ (33) So,W (2780)-Caruana,F (2822) Saint Louis 2018}) 7. Qxc4 {[%emt 0:03:30] LiveBook: 177 Games} Nb6 {[%emt 0:00:00]} 8. Qb5 {[%emt 0:04:30]} a6 {[%emt 0:00:00]} 9. Qd3 {[%emt 0:00:00]} e5 {[%emt 0:01:30]} 10. e3 $146 {[%emt 0:08:00]} ({Predecessor:} 10. Nxe5 Nb4 11. Qc3 Qxd4 12. Qxd4 Nc2+ 13. Kd1 Nxd4 14. Be3 {½-½ (90) Fridman,D (2637)-Nabaty,T (2690) Batumi 2018}) 10... Nb4 {[%emt 0:06:30]} 11. Qe2 {[%emt 0:10:30]} Bg4 {[%emt 0:24:30]} 12. h3 {[%emt 0:03:30]} exd4 {[%emt 0:10:30]} 13. exd4+ {[%emt 0:02:30]} Be6 {[%emt 0:00:30]} 14. Ng5 {[%emt 0:08:30]} Qxd4 {[%emt 0:00:30]} 15. Nxe6 {[%emt 0:06:30]} Nd3+ {[%emt 0:00:30]} 16. Kf1 {[%emt 0:00:30]} fxe6 {[%emt 0:00:30]} 17. Qxe6+ {[%emt 0:30:47]} Be7 {[%emt 0:00:00]} 18. Be3 {[%emt 0:02:10]} Qc4 {[%emt 0:10:00]} 19. Qxc4 {[%emt 0:00:48]} Nxc4 {[%emt 0:00:30]} 20. Bxb7 {[%emt 0:00:21]} Nxe3+ {[%emt 0:00:00]} 21. fxe3 {[%emt 0:00:18]} O-O+ {[%emt 0:00:00]} 22. Ke2 {[%emt 0:00:19]} Rad8 {[%emt 0:00:00]} 23. Rf1 {[%emt 0:00:53]} Rxf1 {[%emt 0:07:00]} 24. Kxf1 {[%emt 0:00:30]} Nxb2 {[%emt 0:00:00]} 25. Nc3 {[%emt 0:00:00]} Bf6 {[%emt 0:02:00]} 26. Ne4 {[%emt 0:00:23]} Be5 {[%emt 0:02:30]} 27. Rc1 {[%emt 0:00:33]} Rb8 {[%emt 0:04:30]} 28. Bxa6 {[%emt 0:00:14]} Rb4 {[%emt 0:00:30]} 29. Nc5 {[%emt 0:01:23]} Bxg3 {[%emt 0:00:30]} 30. Ke2 {[%emt 0:00:22]} h5 {[%emt 0:01:30]} 31. Bb7 {[%emt 0:00:48]} Kh7 {[%emt 0:01:30]} 32. a3 {[%emt 0:00:27]} Rb6 {[%emt 0:02:30]} 33. a4 {[%emt 0:00:38]} Rf6 {[%emt 0:10:57]} 34. Ne4 {[%emt 0:00:42]} Rb6 {[%emt 0:00:04]} 35. Nc5 {[%emt 0:00:20]} Rf6 {[%emt 0:00:30]} 36. Ne4 {[%emt 0:00:30]} Rb6 {[%emt 0:00:00]} 37. Nxg3 {[%emt 0:00:11]} Rxb7 {[%emt 0:00:00]} 38. Rb1 {[%emt 0:00:00]} Rb6 {[%emt 0:03:44]} 39. a5 {[%emt 0:00:36]} Rg6 {[%emt 0:00:04]} 40. Nxh5 {[%emt 0:00:00]} Nc4 $14 {[%emt 0:00:00]} 41. Rc1 {[%emt 0:03:17]} Nxa5 {[%emt 0:03:11]} 42. Rxc7 {[%emt 0:00:30]} Nb3 {[%emt 0:01:30]} 43. Kd3 {[%emt 0:02:30]} Rg5 {[%emt 0:01:30]} 44. Nf4 {[%emt 0:00:30]} Nc5+ {[%emt 0:02:30]} 45. Kd4 {[%emt 0:05:30]} Nb3+ {[%emt 0:00:00]} 46. Kd3 {[%emt 0:04:55]} Nc5+ {[%emt 0:00:00]} 47. Ke2 {[%emt 0:00:00]} Re5 {[%emt 0:01:30]} 48. Kf3 {[%emt 0:03:22]} Ne4 {[%emt 0:01:30]} 49. Rc6 {[%emt 0:01:06]} Nd2+ {[%emt 0:01:30]} 50. Ke2 {[%emt 0:00:30]} Ne4 {[%emt 0:00:30]} 51. Rc2 {[%emt 0:01:19]} g5 {[%emt 0:00:30]} 52. Rc7+ {[%emt 0:01:51]} Kh6 {[%emt 0:00:30]} 53. Rc6+ {[%emt 0:00:08]} Kg7 {[%emt 0:00:30]} 54. Ne6+ {[%emt 0:00:29]} Kg6 {[%emt 0:01:30]} 55. Kf3 {[%emt 0:01:57]} Nf6 {[%emt 0:02:30]} 56. Nf8+ {[%emt 0:00:57]} Kg7 {[%emt 0:01:30]} 57. Rxf6 {[%emt 0:00:11]} Rd5 {[%emt 0:00:00]} 58. Ke4 {[%emt 0:00:49]} 1-0